Cogmind - Beta 15 @@@ ROGUE MODE // 2025.07.26 @ 13:31:36 Player: Conlarando Result: Destroyed by S-10 Pest with Light Assault Rifle Performance ------------- Evolutions (0) 0 Regions Visited (4) 800 Robots Destroyed (24) 120 Value Destroyed (413) 413 Prototype IDs (23) 460 Alien Tech Used (0) 0 Bonus (66) 66 TOTAL SCORE: 1859 Bonus ------- Follower Combat Kills 66 Cogmind --------- Core Integrity 0/250 Matter 280/300 Energy 125/125 System Corruption 0% Temperature Cool (0) Movement Walking (45) Location -9/Mines Parts ------- > --- POWER (1) -------- Light Ion Engine > --- PROPULSION (2) --- Potential Leg Potential Leg > --- UTILITY (2) ------ Medium Storage Unit Core Shielding > --- WEAPON (2) ------- Light Assault Rifle Rocket Launcher > --- INVENTORY (10) --- Structural Scanner Visual Processing Unit Sensor Array Signal Interpreter ECM Suite Core Shielding Hacking Suite Assault Rifle Assault Rifle Hammer Peak State ------------ > --- POWER ------------ Light Ion Engine > --- PROPULSION ------- Potential Leg Potential Leg > --- UTILITY ---------- Medium Storage Unit Core Shielding > --- WEAPON ----------- Light Assault Rifle Rocket Launcher > --- INVENTORY -------- Structural Scanner Visual Processing Unit Sensor Array Signal Interpreter ECM Suite Core Shielding Hacking Suite Assault Rifle Assault Rifle Hammer [Rating: 27] Favorites ----------- Power Light Ion Engine Engine Light Ion Engine Propulsion Light Treads Treads Light Treads Leg Potential Leg Wheel Compact Wheel Utility Medium Storage Unit Device Heat Sink Storage Medium Storage Unit Protection Core Shielding Weapon Light Assault Rifle Energy Gun Medium Laser Ballistic Gun Light Assault Rifle Launcher Rocket Launcher Build | -11 -10 -10 -10 -9 ------- Run | Yrd Mat Min Exi Min Slots Evolved . | . . . . . Power . | . . . . . Propulsion . | . . . . . Utility . | . . . . . Weapon . | . . . . . Parts Attached 23 | 6 14 1 2 . Power 3 | 1 2 . . . Engine 3 | 1 2 . . . Core . | . . . . . Reactor . | . . . . . Propulsion 8 | 2 4 . 2 . Treads 3 | 2 1 . . . Leg 2 | . . . 2 . Wheel 3 | . 3 . . . Hover . | . . . . . Flight . | . . . . . Utility 5 | 1 4 . . . Device 1 | . 1 . . . Storage 2 | 1 1 . . . Processor . | . . . . . Hackware . | . . . . . Protection 2 | . 2 . . . Artifact . | . . . . . Weapon 7 | 2 4 1 . . Energy Gun 3 | 1 2 . . . Energy Cannon . | . . . . . Ballistic Gun 3 | 1 2 . . . Ballistic Cannon . | . . . . . Launcher 1 | . . 1 . . Special Weapon . | . . . . . Impact Weapon . | . . . . . Slashing Weapon . | . . . . . Piercing Weapon . | . . . . . Special Melee Weapon . | . . . . . Unidentified Prototypes . | . . . . . Parts Lost 7 | . 7 . . . Power 1 | . 1 . . . Propulsion 3 | . 3 . . . Utility 1 | . 1 . . . Weapon 2 | . 2 . . . Highest Loss Streak 3 | . 3 . . . To Critical Strikes . | . . . . . Average Backups 8 | 3 7 9 10 10 Power . | . . . . . Propulsion 1 | 1 2 . . . Utility 4 | . 3 7 7 7 Weapon 1 | . . 2 3 3 Tool/Special . | . . . . . Unused Backups 9 | . 1 . . 8 Power . | . . . . . Propulsion 1 | . 1 . . . Utility 7 | . . . . 7 Weapon 1 | . . . . 1 Tool/Special . | . . . . . Average Slot Usage (%) 98 | . 98 100 100 100 Engine 14 | . 14 14 14 14 Treads 12 | . 20 . . . Leg 1 | . . . 10 28 Wheel 13 | . 6 28 17 . Device 1 | . 3 . . . Storage 14 | . 14 14 14 14 Protection 11 | . 9 14 14 14 Energy Gun 6 | . 10 . . . Ballistic Gun 15 | . 16 14 14 14 Launcher 5 | . . 13 14 14 Peak Build Rating 27 | 6 9 9 27 27 Average Rating 9 | 4 7 8 15 27 On Entrance 10 | . 6 8 9 27 Naked Turns . | . . . . . Heaviest Build 19 | 11 19 19 19 19 Greatest Support 60 | 40 40 26 60 60 Greatest Overweight (x) 6 | . . . 6 . Average Overweight (x) . | . . . . . Largest Inventory Capacity 10 | 8 10 10 10 10 Average Capacity 9 | 7 9 10 10 10 Most Carried 10 | 4 10 10 10 10 Average Carried 8 | 3 7 9 10 10 Final Capacity 10 | 8 10 10 10 10 Final Carried 10 | 4 9 10 10 10 Class Distribution -------------------- 91% | Mutant 8% | Scavenger-Mutant Dominant Class ---------------- Mutant | -10/Materials Mutant | -10/Mines Mutant | -10/Exiles Mutant | -9/Mines Resources | -11 -10 -10 -10 -9 ----------- Run | Yrd Mat Min Exi Min Matter Collected 558 | 229 262 67 . . Remotely . | . . . . . Salvage Created 767 | . 734 33 . . Parts 50 | . 42 8 . . Haulers Intercepted 2 | . 2 . . . Recyclers Shooed 1 | . 1 . . . Parts Field Recycled . | . . . . . Retrieved Matter . | . . . . . Parts Self-Destructed . | . . . . . Prevented . | . . . . . Kills | -11 -10 -10 -10 -9 ------- Run | Yrd Mat Min Exi Min Combat Hostiles Destroyed 13 | . 10 3 . . Guns 10 | . 10 . . . AOE 3 | . . 3 . . Classes Destroyed 8 | . 7 1 . . Worker 2 | . 2 . . . Tunneler 1 | . . 1 . . Hauler 2 | . 2 . . . Recycler 2 | . 2 . . . Operator 2 | . 2 . . . Watcher 2 | . 2 . . . Swarmer 6 | . 3 3 . . Grunt 7 | . 7 . . . Best Kill Streak 6 | . 6 4 . . Combat Bots Only 3 | . 3 3 . . Max Kills in Single Turn 2 | . 1 2 . . Gunslinging . | . . . . . Exploded 2 | . . 2 . . Melee . | . . . . . Uniques/NPCs Destroyed . | . . . . . Combat | -11 -10 -10 -10 -9 -------- Run | Yrd Mat Min Exi Min Hostile Shots Fired 119 | . 99 11 . 9 Missed 22 | . 14 3 . 5 Hits 97 | . 85 8 . 4 Projectile 97 | . 85 8 . 4 Critical Strikes 2 | . 1 1 . . Actively Blocked 1 | . . 1 . . Damage Taken 1146 | . 1001 110 . 35 Core 257 | . 213 36 . 8 Absorbed by Shields . | . . . . . Redirected to Shielding 63 | . 52 9 . 2 Core Remaining (%) 100 | 100 . . . . Volleys Fired 77 | . 72 5 . . Largest 2 | . 2 2 . . Hottest 85 | . 85 53 . . Shots Fired 151 | . 142 9 . . Gun 147 | . 142 5 . . Cannon . | . . . . . Launcher 4 | . . 4 . . Special . | . . . . . Kinetic 93 | . 88 5 . . Thermal 45 | . 45 . . . Explosive 4 | . . 4 . . Electromagnetic 9 | . 9 . . . Robot Hit Streak 15 | . 15 3 . . Robot Miss Streak 3 | . 3 3 . . Penetration Max . | . . . . . Secondary Targets 1 | . 1 . . . Max Gunslinging Chain 1 | . 1 . . . Shots Hit Robots 106 | . 101 5 . . Core Hits 43 | . 38 5 . . Critical Kills . | . . . . . Critical Parts Destroyed . | . . . . . Critical Strikes 1 | . 1 . . . Burn 1 | . 1 . . . Melee Attacks . | . . . . . Impact . | . . . . . Slashing . | . . . . . Piercing . | . . . . . Sneak Attacks . | . . . . . Combat Hostiles . | . . . . . Follow-up Attacks . | . . . . . Damage Inflicted 1106 | . 874 232 . . Guns 887 | . 869 18 . . Cannons . | . . . . . Explosions 214 | . . 214 . . Melee . | . . . . . Ramming 5 | . 5 . . . Kinetic 550 | . 532 18 . . Thermal 260 | . 260 . . . Explosive 214 | . . 214 . . Electromagnetic 77 | . 77 . . . Impact . | . . . . . Slashing . | . . . . . Piercing . | . . . . . Highest Corruption . | . . . . . Average Corruption . | . . . . . Corruption Purged . | . . . . . Corruption Blocked . | . . . . . Overload Shots . | . . . . . Overflow Damage 24 | . . 24 . . Projectiles . | . . . . . Explosions 24 | . . 24 . . Melee . | . . . . . Knockbacks . | . . . . . Impact . | . . . . . Kinetic . | . . . . . Secondary . | . . . . . Self-Inflicted Damage . | . . . . . Shots . | . . . . . Rammed 1 | . 1 . . . Targets Rammed 1 | . 1 . . . Kicked . | . . . . . Crushed . | . . . . . Highest Temperature 338 | . 338 24 . . Average Temperature 95 | . 100 12 . . Received Heat Transfer 522 | . 495 27 . . Effects 2 | . 2 . . . Shutdowns 1 | . 1 . . . Energy Bleed 1 | . 1 . . . Siege Activations . | . . . . . Martial Activations . | . . . . . Shielding Activations . | . . . . . Robots Disrupted . | . . . . . Combat Hostiles . | . . . . . Robots Corrupted . | . . . . . Combat Hostiles . | . . . . . Parts Fried . | . . . . . Impact Corruptions . | . . . . . Robots Melted . | . . . . . Combat Hostiles . | . . . . . Parts Melted . | . . . . . Heat Transferred 851 | . 851 . . . Parts Sabotaged . | . . . . . Parts Stolen . | . . . . . Parts Stripped . | . . . . . Power Chain Reactions . | . . . . . Alert | -11 -10 -10 -10 -9 ------- Run | Yrd Mat Min Exi Min Maximum Alert Level . | . . . . . Low Security (%) 100 | 100 100 100 . 100 Level 1 . | . . . . . Level 2 . | . . . . . Level 3 . | . . . . . Level 4 . | . . . . . Level 5 . | . . . . . High Security . | . . . . . Max Security . | . . . . . Peak Influence 100 | . 74 100 . . Initial 17 | . . 17 . . Average 23 | . 20 32 . . Influence Increases 496 | . 333 163 . . Destroy 0b10 Robot/C 300 | . 200 100 . . Destroy 0b10 Robot/NC 55 | . 50 5 . . Destroy Leader 78 | . 68 10 . . Allied During Kill 12 | . . 12 . . Successful Hack 14 | . 14 . . . Destroy Structure 37 | . 1 36 . . Influence Decreases 496 | . 287 168 41 . Entered New Map 70 | . . 29 41 . Time Decay 366 | . 227 139 . . Lost Part 60 | . 60 . . . Squads Dispatched 3 | . 3 . . . Investigation . | . . . . . Extermination . | . . . . . Reinforcement 3 | . 3 . . . Assault . | . . . . . Garrison . | . . . . . Intercept . | . . . . . Searches Triggered . | . . . . . Construction Impeded . | . . . . . Haulers Reinforced . | . . . . . Active Scanning Responses . | . . . . . Cargo Convoy Interrupts . | . . . . . Stealth | -11 -10 -10 -10 -9 --------- Run | Yrd Mat Min Exi Min Distress Signals 2 | . 2 . . . Communications Jammed . | . . . . . Distress Signals . | . . . . . Times Spotted 31 | . 19 5 . 7 Peak Tracking Total 7 | . 6 3 . 7 Tactical Retreats . | . . . . . Traps | -11 -10 -10 -10 -9 ------- Run | Yrd Mat Min Exi Min Traps Triggered 1 | . 1 . . . Indirectly . | . . . . . Trap Hack Attempts . | . . . . . Triggered . | . . . . . Disarmed . | . . . . . Reprogrammed . | . . . . . Reused . | . . . . . Traps Extracted . | . . . . . Installed . | . . . . . Triggered . | . . . . . Machines | -11 -10 -10 -10 -9 ---------- Run | Yrd Mat Min Exi Min Machines Disabled 2 | . . 2 . . Max in Single Turn 2 | . . 2 . . Machines Repaired . | . . . . . Machines Dismantled . | . . . . . Machines Sabotaged . | . . . . . Overloaded Fab Kills . | . . . . . Hacking | -11 -10 -10 -10 -9 --------- Run | Yrd Mat Min Exi Min Machines Accessed 8 | . 5 . 3 . Terminals 4 | . 4 . . . Fabricators . | . . . . . Repair Stations . | . . . . . Recycling Units 1 | . 1 . . . Scanalyzers . | . . . . . Garrison Access . | . . . . . Total Hacks 20 | . 16 . 4 . Successful 11 | . 7 . 4 . Failed 9 | . 9 . . . Catastrophic 3 | . 3 . . . Database Lockouts . | . . . . . Manual 7 | . 6 . 1 . Terminals 14 | . 14 . . . Fabricators . | . . . . . Repair Stations . | . . . . . Recycling Units 2 | . 2 . . . Scanalyzers . | . . . . . Garrison Access . | . . . . . Terminal Hacks 9 | . 5 . 4 . Record 4 | . 1 . 3 . Branch Access Points 1 | . 1 . . . Emergency Access Points 1 | . 1 . . . Locate Traps 1 | . 1 . . . Zone Layout 1 | . 1 . . . Proto ID Catalog 1 | . . . 1 . Fabricator Hacks . | . . . . . Repair Station Hacks . | . . . . . Recycling Unit Hacks 2 | . 2 . . . Report Inventory 1 | . 1 . . . Retrieve Components 1 | . 1 . . . Scanalyzer . | . . . . . Garrison Access Hacks . | . . . . . Unauthorized Hacks . | . . . . . Terminals . | . . . . . Fabricators . | . . . . . Repair Stations . | . . . . . Recycling Units . | . . . . . Scanalyzers . | . . . . . Garrison Access . | . . . . . Data Cores Recovered . | . . . . . Used . | . . . . . Hacking Detections 5 | . 5 . . . Full Trace Events . | . . . . . Feedback Events . | . . . . . Feedback Blocked . | . . . . . Robot Schematics Acquired . | . . . . . Robots Built . | . . . . . Authchips . | . . . . . Time . | . . . . . Total Robot Build Rating . | . . . . . Part Schematics Acquired . | . . . . . Parts Built . | . . . . . Authchips . | . . . . . Time . | . . . . . Total Part Build Rating . | . . . . . Parts Repaired . | . . . . . Time . | . . . . . Parts Recycled . | . . . . . Recycled Matter . | . . . . . Retrieved Matter . | . . . . . Retrieved Components 2 | . 2 . . . Parts Scanalyzed . | . . . . . Part Schematics Acquired . | . . . . . Parts Damaged . | . . . . . Bothacking | -11 -10 -10 -10 -9 ------------ Run | Yrd Mat Min Exi Min Used RIF Installer . | . . . . . Robots Hacked . | . . . . . Non-combat . | . . . . . Combat . | . . . . . Robot Hacks Applied . | . . . . . Relay Couplers Released . | . . . . . Fabnet Peak Effective % . | . . . . . Robots Rewired . | . . . . . Allies Hacked . | . . . . . Hacks Repelled . | . . . . . Allies | -11 -10 -10 -10 -9 -------- Run | Yrd Mat Min Exi Min Total Allies 2 | . . 2 . . Largest Group 2 | . . 2 . . Highest-Rated Group 46 | . . 46 . . Highest-Rated Ally 31 | . . 31 . . Total Orders . | . . . . . Ally Attacks 4 | . . 4 . . Total Damage 63 | . . 63 . . Kills 2 | . . 2 . . Allies Corrupted . | . . . . . Allies Melted . | . . . . . Intel | -11 -10 -10 -10 -9 ------- Run | Yrd Mat Min Exi Min Active Infowar (turns) . | . . . . . Robot Analysis Total . | . . . . . Derelict Logs Recovered 4 | . . 3 . 1 Drone Launches . | . . . . . Drone Recoveries . | . . . . . Exploration | -11 -10 -10 -10 -9 ------------- Run | Yrd Mat Min Exi Min Turns Passed 1912 | 70 1092 478 254 18 Spaces Moved 1425 | 41 577 503 274 30 Core 8 | 7 . . 1 . Treads 421 | 34 387 . . . Legs 138 | . . . 108 30 Wheels 858 | . 190 503 165 . Hover . | . . . . . Flight . | . . . . . Fastest Speed 45 | 50 90 90 90 45 Average Speed 109 | 141 136 90 90 57 Slowest Speed 350 | 160 160 90 350 90 Overloaded Moves 22 | . . . . 22 Propulsion Burnouts . | . . . . . Robots Hopped . | . . . . . Potential Cave-ins . | . . . . . Cave-ins Triggered . | . . . . . Exploration Rate (%) 45 | 3 79 87 46 10 Regions Visited 4 Branch Regions 3 Pre-discovered Areas 1 | . . 1 . . Known Exits Taken 1 | . 1 . . . Unknown Exits Taken 3 | 1 . 1 1 . Scrap Searched . | . . . . . Spaces Dug . | . . . . . Terrain Destroyed 50 | . . 50 . . Melee . | . . . . . Projectile . | . . . . . AOE 50 | . . 50 . . Terrain Rammed . | . . . . . Walls Destroyed . | . . . . . Machines Disabled . | . . . . . Actions | -11 -10 -10 -10 -9 --------- Run | Yrd Mat Min Exi Min Total 1630 | 50 751 521 278 30 Wait 74 | . 66 8 . . Move 1421 | 40 576 502 273 30 Hop . | . . . . . Pick Up 16 | 4 10 2 . . Fast Attach 16 | 6 7 1 2 . Attach 7 | . 7 . . . Detach 3 | . 2 1 . . Swap 3 | . 3 . . . Drop 11 | . 7 2 2 . Fire 77 | . 72 5 . . Melee . | . . . . . Ram . | . . . . . Kick . | . . . . . Crush 1 | . 1 . . . Escape Stasis . | . . . . . Rewire 1 | . . . 1 . Trap . | . . . . . Miscellaneous . | . . . . . Route ------- -11/Scrapyard -10/Materials (discovered 4 exits: [*Mat x2] / *Min x2) -10/Mines (discovered 3 exits: [*Mat x2] / *Exi) -10/Exiles -9/Mines History --------- Turn | Location | Event 8 | -11/Scrapyard | Discovered new exit (range 15) 71 | -11/Scrapyard | Entered Materials 310 | -10/Materials | Build established: Mutant 562 | -10/Materials | Discovered new exit (range 5) 622 | -10/Materials | Discovered new exit (range 16) 765 | -10/Materials | Discovered new exit (range 12) 838 | -10/Materials | Core integrity fell below 50% 892 | -10/Materials | Lost 3 parts (2n1u) 950 | -10/Materials | Core integrity fell below 20% 978 | -10/Materials | Identified exit to Mines 1021 | -10/Materials | Discovered new exit (range 15) 1163 | -10/Materials | Entered Mines 1170 | -10/Mines | Received a Rocket Launcher from a helpful Derelict 1178 | -10/Mines | Discovered new exit (range 10) 1257 | -10/Mines | Discovered new exit (range 14) 1297 | -10/Mines | Learned location of Storage (-9) 1452 | -10/Mines | Learned Materials emergency access door positions 1636 | -10/Mines | Deemed a non-threat by the Exiles lab entrance 1637 | -10/Mines | Discovered new exit (range 5) 1641 | -10/Mines | Entered Exiles 1641 | -10/Exiles | Found Exiles lab destroyed 1653 | -10/Exiles | Discovered new exit (range 15) 1781 | -10/Exiles | Opened EX-Vault 1795 | -10/Exiles | Found Potential Leg 1798 | -10/Exiles | Found Potential Leg 1895 | -10/Exiles | Entered Mines 1901 | -9/Mines | Learned Materials stockpile data 1913 | -9/Mines | Received a Mining Laser from a helpful Derelict 1913 | -9/Mines | Destroyed by S-10 Pest with Light Assault Rifle Last Messages --------------- YOLO Cannon AWS/Gauss XL Autogun Array AWS/Autocannon Field Lobotomy Kit Longsword +1 Deploy-a-Sentry 01791_ Dropped Wheel. 01792_ Dropped Com. Wheel. 01795_ Acquired Potential Leg. LOCATION=UNKNOWN GOAL=ESCAPE 01901_ Acquired derelict log, extracted data. Data stored: Materials stockpile data. 01911_ A derelict emerges from the shadows: "What are you doing alone down here?" 01913_ 1X-21H(g): "And why aren't you carrying a mining laser?! Certainly you don't want THEM to uncover you when the ceiling comes crashing down? Here, take my spare." Map ----- +----------------------------------------------------+ | ??????????????????????????????? | | ??????????????????????????????? | | ??????????????????????????????? | | ??????????????????????????????? | | ??????????????????????????????? | | ??????????????????????????????? | | ??????????????????????????????? | | ??????????????????????????????? | | ??????????????????????????????? | | ??????????????????????????????? | | ??????????????????????????????? | | ??????????????????????????????? | | ??????????????????????????????? | | ??????????????????????????????? | | ??????????????????????????????? | | ?????????????????????####?????? | | ?????????????????????# ####??? | | ???????????#######??? ##?? | | ???????????? #????ss #?? | | ???????????? #???? s #?? | | ????????????? """#????#s ??? | | ????????????? """#???## ???? | | ??????????????"""#???# #???? | | ?????????????? ????# #???? | | ????????####??# #????# #???? | | ???????## #### #????# @#???? | | ???????# #???## ##??? | | ???????#X ### #??##s #??? | | ???????" ### ####s #??? | | ???????" s ##??? | | ???????# ##???? | | ???????# ########## ##????? | | ???????# #???????# #?????? | | ??????# #??????# #?????? | | ??????# #?????? g#?????? | | ??????## ## ##?????? #?????? | | ???????##?####?????? #?????? | | ???????????????????? #?????? | | ??????????????????? ##?????? | | ???????????????????? #??????? | | ???????????????????? ???????? | | ???????????????????? ???????? | | ????????????????????? ???????? | | ??????????????????????????????? | | ??????????????????????????????? | | ??????????????????????????????? | | ??????????????????????????????? | | ??????????????????????????????? | | ??????????????????????????????? | | ??????????????????????????????? | +----------------------------------------------------+ Best States ------------- Heat Dissipation 35 Energy Generation 10 Energy Capacity 250 Matter Stores 300 Matter Capacity 300 Sight Range 16 Terrain Scan Density 10 Core Shielding 20 Weapon Shielding 33 Evasion (%) 66 Recoil Reduction 2 Item Schematics ----------------- None Robot Schematics ------------------ None Fabricated ------------ Nothing Repaired ---------- Nothing Alien Tech Used ----------------- None Achievements -------------- None Challenges ------------ None Game ------ Seed SeismicTacticalShotgun Manual? 0 Play Time 00:23:38 Cumulative 31.5 hours Start 2025.07.26 @ 13:04:35 End 2025.07.26 @ 13:31:36 Sessions 1 Manual Loads 0 Difficulty Rogue Special Mode None Game No. 42 Rogue 42 Adventurer 0 Explorer 0 Win Type - Total 1 Types 1/0/0/0/0/0/0/0/0/0 Lore% 5 Gallery% 27 Achievement% 27 Wizard Run 0 Options --------- Layout 1 ASCII 0 Keyboard 1 Movement Numpad Keybinds 0 Fullscreen 1 Font 24/Terminus Map View 50x35 Zoom Use 0% Tactical HUD 1 Map Filters NONE Filters NONE Steam 1 RUN: 60149cd5-802c-4e9d-95b9-40bae8560c3c